fUST/lending_fUST_20251020
["ID","MTS","AMOUNT","RATE_DAILY","PERIOD"]
[391882946,1760951440652,-500.0,0.00026054,2]
[391882948,1760951440661,-500.0,0.00026054,2]
[391882950,1760951440671,-500.0,0.00026054,2]
[391882952,1760951440680,-501.80162162,0.00026054,2]
[391882954,1760951440690,-500.0,0.00026054,2]
[391882956,1760951440699,-500.0,0.00026054,2]
[391882958,1760951440708,-158.05538179,0.00026054,2]
[391882959,1760951440717,-500.0,0.00026054,2]
[391882961,1760951440727,-500.0,0.00026054,2]
[391882962,1760951440736,-160.05607709,0.00026054,2]
[391882964,1760951440745,-237.84333909,0.00026054,2]
[391882965,1760951440755,-500.0,0.00026054,2]
[391882966,1760951440764,-500.0,0.00026054,2]
[391882967,1760951440773,-500.0,0.00026054,2]
[391882968,1760951440783,-168.05889343,0.00026054,2]
[391882969,1760951440792,-500.0,0.00026054,2]
[391882970,1760951440802,-500.0,0.00026054,2]
[391882971,1760951440811,-158.45552194,0.00026054,2]
[391882972,1760951440820,-500.0,0.00026054,2]
[391882973,1760951440829,-500.0,0.00026054,2]
[391882974,1760951440839,-675.0,0.00026058,3]
[391882975,1760951440847,-210.6905873,0.00026058,3]
[391882976,1760951440857,-500.0,0.00026058,3]
[391882977,1760951440866,-246.74534427,0.00026058,3]
[391882978,1760951440875,-151.0,0.00026058,3]
[391882979,1760951440884,-500.0,0.00026058,3]
[391882980,1760951440893,-500.0,0.00026058,3]
[391882981,1760951440902,-151.0,0.00026058,3]
[391882982,1760951440911,-500.0,0.00026061,2]
[391882983,1760951440920,-500.0,0.00026062,5]
[391882984,1760951440930,-675.0,0.00026113,3]
[391882985,1760951440939,-500.0,0.00026113,3]
[391882986,1760951440948,-199.90009523,0.00026113,3]
[391882987,1760951440957,-500.0,0.00026113,3]
[391882988,1760951440966,-500.0,0.00026113,3]
[391882989,1760951440975,-198.0,0.00026113,3]
[391882990,1760951440984,-675.0,0.00026167,3]
[391882991,1760951440994,-500.0,0.00026167,3]
[391882992,1760951441003,-510.71064386,0.00026167,3]
[391882993,1760951441012,-1043.69953903,0.00026191,2]
[391882994,1760951441022,-410.62875183,0.00026198,2]
[391882995,1760951441031,-1000.0,0.00026198,2]
[391882996,1760951441041,-1000.0,0.00026198,2]
[391882997,1760951441050,-433.48337635,0.00026198,2]
[391882998,1760951441059,-675.0,0.00026222,3]
[391882999,1760951441068,-500.0,0.00026222,3]
[391883000,1760951441077,-479.20992188,0.00026259,2]
[391883001,1760951441086,-5752.10650716,0.00026266,2]
[391883002,1760951441096,-161.30626584,0.00026266,2]
[391883003,1760951441105,-223.9105657,0.00026269,2]
[391883004,1760951441114,-675.0,0.00026277,3]
[391883005,1760951441123,-361.0,0.00026277,3]
[391883006,1760951441133,-675.0,0.00026332,3]
[391883007,1760951441142,-500.0,0.00026335,2]
[391883008,1760951441152,-500.0,0.00026336,5]
[391883009,1760951441161,-675.0,0.00026387,3]
[391883010,1760951441171,-675.0,0.00026441,3]
[391883011,1760951441180,-675.0,0.00026496,3]
[391883012,1760951441189,-2000.0,0.00026516,2]
[391883013,1760951441198,-2000.0,0.00026516,2]
[391883014,1760951441207,-2000.0,0.00026516,2]
[391883015,1760951441216,-500.0,0.00026516,2]
[391883016,1760951441225,-1522.05539574,0.00026516,2]
[391883017,1760951441235,-675.0,0.00026551,3]
[391883018,1760951441244,-1013.90856149,0.00026571,2]
[391883019,1760951441253,-1004.3291338,0.00026571,2]
[391883020,1760951441262,-1000.0,0.00026571,2]
[391883021,1760951441271,-1000.0,0.00026571,2]
[391883022,1760951441280,-1000.0,0.00026571,2]
[391883023,1760951441289,-1000.0,0.00026571,2]
[391883024,1760951441299,-616.45346026,0.00026571,2]
[391883025,1760951441308,-240.0,0.000266,2]
[391883026,1760951441317,-1000.0,0.00026602,2]
[391883027,1760951441327,-1000.0,0.00026602,2]
[391883028,1760951441337,-1000.0,0.00026602,2]
[391883029,1760951441346,-1120.1437084,0.00026602,2]
[391883030,1760951441355,-490.62025387,0.00026602,2]
[391883031,1760951441364,-1000.0,0.00026602,2]
[391883032,1760951441374,-1000.0,0.00026602,2]
[391883033,1760951441383,-1000.0,0.00026602,2]
[391883034,1760951441392,-505.30308015,0.00026602,2]
[391883035,1760951441401,-1000.0,0.00026602,2]
[391883036,1760951441411,-174.55050883,0.00026602,2]
[391883037,1760951441420,-1015.34274103,0.00026602,2]
[391883038,1760951441429,-1012.92329566,0.00026602,2]
[391883039,1760951441438,-529.66142112,0.00026602,2]
[391883040,1760951441446,-1015.28598846,0.00026602,2]
[391883041,1760951441455,-1000.0,0.00026602,2]
[391883042,1760951441466,-969.37199468,0.00026602,2]
[391883043,1760951441477,-507.73015531,0.00026602,2]
[391883044,1760951441485,-1000.0,0.00026602,2]
[391883045,1760951441494,-954.74143307,0.00026602,2]
[391883046,1760951441503,-1000.0,0.00026602,2]
[391883047,1760951441513,-1000.0,0.00026602,2]
[391883048,1760951441522,-675.0,0.00026606,3]
[391883049,1760951441531,-500.0,0.00026609,2]
[391883050,1760951441541,-500.0,0.0002661,5]
[391883051,1760951441551,-675.0,0.00026661,3]
[391883052,1760951441560,-160.0,0.00026681,2]
[391883053,1760951441570,-675.0,0.00026715,3]
[391883054,1760951441579,-5752.10650716,0.00026734,2]
[391883055,1760951441589,-161.30626584,0.00026734,2]
[391883056,1760951441598,-1680.0,0.00026735,2]
[391883057,1760951441607,-420.0,0.00026735,2]
[391883058,1760951441616,-402.0,0.00026735,2]
[391883059,1760951441626,-8000.0,0.00026744,3]
[391883060,1760951441636,-1500.0,0.00026746,2]
[391883061,1760951441646,-1500.0,0.00026746,2]
[391883062,1760951441655,-675.0,0.0002677,3]
[391883063,1760951441664,-675.0,0.00026825,3]
[391883064,1760951441673,-1680.0,0.00026856,2]
[391883065,1760951441683,-675.0,0.0002688,3]
[391883066,1760951441692,-548.81049135,0.00026883,2]
[391883067,1760951441701,-500.0,0.00026884,5]
[391883068,1760951441710,-209.497521,0.000269,20]
[391883069,1760951441719,-174.380786,0.000269,20]
[391883070,1760951441728,-675.0,0.00026935,3]
[391883071,1760951441737,-152.75385122,0.00026973,2]
[391883072,1760951441747,-150.0,0.00026973,2]
[391883073,1760951441755,-150.0,0.00026973,2]
[391883074,1760951441764,-161.82696326,0.00026973,2]
[391883075,1760951441773,-1120.48,0.00026983,2]
[391883076,1760951441783,-675.0,0.00026989,3]
[391883077,1760951441792,-35098.72689305,0.00027,3]
[391883078,1760951441801,-675.0,0.00027044,3]
[391883079,1760951441811,-4000.0,0.0002706,3]
[391883080,1760951441819,-956.65364387,0.00027064,2]
[391883081,1760951441828,-2500.0,0.00027064,2]
[391883082,1760951441837,-2500.0,0.00027064,2]
[391883083,1760951441847,-1855.46584716,0.00027089,2]
[391883084,1760951441855,-675.0,0.00027099,3]
[391883085,1760951441864,-5752.10650716,0.00027109,2]
[391883086,1760951441873,-161.30626584,0.00027109,2]
[391883087,1760951441883,-1293.16431153,0.00027119,2]
[391883088,1760951441892,-518.20040332,0.00027119,2]
[391883089,1760951441901,-1500.0,0.00027119,2]
[391883090,1760951441911,-1500.0,0.00027119,2]
[391883091,1760951441921,-191.76914439,0.0002715,2]
[391883092,1760951441930,-542.87348369,0.0002715,2]
[391883093,1760951441941,-1570.82366199,0.0002715,2]
[391883094,1760951441950,-1515.02448864,0.0002715,2]
[391883095,1760951441959,-1500.0,0.0002715,2]
[391883096,1760951441968,-1500.0,0.0002715,2]
[391883097,1760951441977,-1500.0,0.0002715,2]
[391883098,1760951441986,-1500.0,0.0002715,2]
[391883099,1760951441995,-1500.0,0.0002715,2]
[391883100,1760951442005,-1500.0,0.0002715,2]
[391883101,1760951442015,-152.73868571,0.0002715,2]
[391883102,1760951442024,-675.0,0.00027154,3]
[391883103,1760951442033,-394.57332877,0.00027155,2]
[391883104,1760951442043,-500.0,0.00027158,5]
[391883105,1760951442052,-151.0,0.000272,18]
[391883106,1760951442062,-262.5,0.000272,2]
[391883107,1760951442071,-675.0,0.00027208,3]
[391883108,1760951442080,-260.0,0.00027229,2]
[391883109,1760951442089,-690.75788133,0.00027263,3]
[391883110,1760951442099,-1577.82391347,0.00027294,2]
[391883111,1760951442108,-607.5256638,0.00027294,2]
[391883112,1760951442117,-209.497521,0.000273,2]
[391883113,1760951442126,-174.380786,0.000273,2]
[391883114,1760951442136,-161.57387509,0.00027337,5]
[391883115,1760951442145,-862.57785938,0.00027371,2]
[391883116,1760951442154,-311.1,0.00027397,2]
[391883117,1760951442164,-543.5,0.00027432,15]
[391883118,1760951442173,-250.0,0.00027521,5]
[391883119,1760951442182,-300.0,0.00027521,5]
[391883120,1760951442191,-403.03901826,0.00027539,2]
[391883121,1760951442201,-209.497521,0.00027567,2]
[391883122,1760951442210,-174.380786,0.00027567,2]
[391883123,1760951442219,-2523.82627988,0.00027612,5]
[391883124,1760951442229,-3000.0,0.00027612,5]
[391883125,1760951442238,-2000.0,0.00027667,5]
[391883126,1760951442247,-1446.45912168,0.00027667,5]
[391883127,1760951442256,-1995.94699985,0.00027698,5]
[391883128,1760951442266,-2000.0,0.00027698,5]
[391883129,1760951442275,-2000.0,0.00027698,5]
[391883130,1760951442285,-2000.0,0.00027698,5]
[391883131,1760951442294,-2000.0,0.00027698,5]
[391883132,1760951442303,-2000.0,0.00027698,5]
[391883133,1760951442312,-6000.0,0.00027716,4]
[391883134,1760951442321,-360.0,0.00027777,2]
[391883135,1760951442331,-209.497521,0.000278,20]
[391883136,1760951442340,-285.0,0.000278,2]
[391883137,1760951442350,-174.380786,0.000278,20]
[391883138,1760951442359,-209.497521,0.00027834,2]
[391883139,1760951442368,-174.380786,0.00027834,2]
[391883140,1760951442378,-5752.10650716,0.0002791,2]
[391883141,1760951442387,-161.30626584,0.0002791,2]
[391883142,1760951442397,-177.822,0.00027935,18]
[391883143,1760951442407,-322.6107,0.00027945,2]
[391883144,1760951442417,-1260.53,0.00027947,2]
[391883145,1760951442426,-2899.16538619,0.00027987,2]
[391883146,1760951442436,-291.24050531,0.00028055,27]
[391883147,1760951442446,-350.0,0.00028068,5]
[391883148,1760951442456,-450.0,0.00028068,5]
[391883149,1760951442468,-237.26387316,0.00028088,2]
[391883150,1760951442478,-209.497521,0.00028101,2]
[391883151,1760951442488,-174.380786,0.00028101,2]
[391883152,1760951442498,-3500.0,0.0002816,5]
[391883153,1760951442507,-2500.0,0.00028215,5]
[391883154,1760951442516,-1515.50384054,0.00028246,5]
[391883155,1760951442525,-2500.0,0.00028246,5]
[391883156,1760951442535,-2500.0,0.00028246,5]
[391883157,1760951442544,-2080.35362883,0.00028246,5]
[391883158,1760951442553,-2350.35554763,0.00028246,5]
[391883159,1760951442562,-460.0,0.00028325,2]
[391883160,1760951442571,-209.497521,0.00028368,2]
[391883161,1760951442580,-174.380786,0.00028368,2]
[391883162,1760951442590,-307.5,0.000284,2]
[391883163,1760951442599,-394.57332877,0.00028433,2]
[391883164,1760951442608,-1533.47175,0.00028483,2]
[391883165,1760951442618,-216.05089707,0.00028493,2]
[391883166,1760951442627,-151.0,0.000285,17]
[391883167,1760951442637,-339.82742202,0.00028616,5]
[391883168,1760951442646,-600.0,0.00028616,5]
[391883169,1760951442655,-5752.10650716,0.00028674,2]
[391883170,1760951442665,-161.30626584,0.00028674,2]
[391883171,1760951442674,-209.497521,0.00028699,20]
[391883172,1760951442683,-174.380786,0.00028699,20]
[391883173,1760951442693,-35098.68,0.000287,4]
[391883174,1760951442703,-1397.68027159,0.00028708,5]
[391883175,1760951442713,-3000.0,0.00028762,5]
[391883176,1760951442722,-3000.0,0.00028794,5]
[391883177,1760951442731,-3000.0,0.00028794,5]
[391883178,1760951442741,-716.51381024,0.00028809,2]
[391883179,1760951442751,-560.0,0.00028873,2]
[391883180,1760951442760,-4174.79815611,0.00028886,2]
[391883181,1760951442769,-1400.59,0.0002891,2]
[391883182,1760951442778,-1514.0,0.00028973,2]
[391883183,1760951442788,-587.0,0.00028973,2]
[391883184,1760951442797,-5752.10650716,0.0002899,2]
[391883185,1760951442806,-161.30626584,0.0002899,2]
[391883186,1760951442815,-26347.55,0.00029,7]
[391883187,1760951442824,-330.0,0.00029,2]
[391883188,1760951442834,-533.61310881,0.00029164,5]
[391883189,1760951442843,-151.0,0.000292,15]
[391883190,1760951442852,-2351.0,0.00029236,2]
[391883191,1760951442862,-271.15871219,0.00029279,2]
[391883192,1760951442871,-157.67836206,0.00029295,2]
[391883193,1760951442880,-4187.18,0.000293,2]
[391883194,1760951442890,-3500.0,0.0002931,5]
[391883195,1760951442899,-5000.0,0.00029334,2]
[391883196,1760951442909,-3500.0,0.00029342,5]
[391883197,1760951442918,-231.9916636,0.00029342,5]
[391883198,1760951442927,-1000.0,0.000294,2]
[391883199,1760951442936,-1000.0,0.000294,2]
[391883200,1760951442945,-1000.0,0.000294,2]
[391883201,1760951442954,-1000.0,0.000294,2]
[391883202,1760951442964,-660.0,0.00029421,2]
[391883203,1760951442973,-5752.10650716,0.0002949,2]
[391883204,1760951442982,-161.30626584,0.0002949,2]
[391883205,1760951442991,-1000.0,0.000295,2]
[391883206,1760951443000,-1000.0,0.000295,2]
[391883207,1760951443010,-1000.0,0.000295,2]
[391883208,1760951443019,-2396.04960938,0.00029594,2]
[391883209,1760951443029,-209.497521,0.00029599,20]
[391883210,1760951443039,-174.380786,0.00029599,20]
[391883211,1760951443049,-352.5,0.000296,2]
[391883212,1760951443058,-1000.0,0.00029622,2]
[391883213,1760951443067,-151.0,0.00029622,2]
[391883214,1760951443076,-1000.0,0.00029622,2]
[391883215,1760951443086,-151.0,0.00029622,2]
[391883217,1760951443095,-1000.0,0.00029622,2]
[391883219,1760951443104,-151.0,0.00029622,2]
[391883221,1760951443114,-1000.0,0.00029622,2]
[391883222,1760951443123,-1000.0,0.00029622,2]
[391883223,1760951443133,-151.0,0.00029622,2]
[391883224,1760951443143,-11190.75002488,0.00029622,2]
[391883225,1760951443152,-1000.0,0.00029622,2]
[391883226,1760951443161,-172.59258262,0.00029622,2]
[391883227,1760951443171,-514.84070869,0.00029622,2]
[391883228,1760951443181,-250.0,0.00029622,2]
[391883229,1760951443190,-1000.0,0.00029622,2]
[391883230,1760951443199,-250.0,0.00029622,2]
[391883231,1760951443209,-1000.0,0.00029622,2]
[391883232,1760951443219,-250.0,0.00029622,2]
[391883233,1760951443228,-1000.0,0.00029622,2]
[391883234,1760951443238,-250.0,0.00029622,2]
[391883235,1760951443252,-1000.0,0.00029622,2]
[391883236,1760951443261,-250.0,0.00029622,2]
[391883237,1760951443271,-1000.0,0.00029622,2]
[391883238,1760951443281,-187.78006525,0.00029622,2]
[391883239,1760951443291,-250.0,0.00029622,2]
[391883240,1760951443300,-1000.0,0.00029622,2]
[391883241,1760951443310,-250.0,0.00029622,2]
[391883242,1760951443320,-1000.0,0.00029622,2]
[391883243,1760951443329,-250.0,0.00029622,2]
[391883244,1760951443339,-1000.0,0.00029622,2]
[391883245,1760951443348,-250.0,0.00029622,2]
[391883246,1760951443358,-1000.0,0.00029622,2]
[391883247,1760951443368,-250.0,0.00029622,2]
[391883248,1760951443377,-1000.0,0.00029622,2]
[391883249,1760951443386,-250.0,0.00029622,2]
[391883250,1760951443395,-151.0,0.00029622,2]
[391883251,1760951443404,-1000.0,0.00029622,2]
[391883252,1760951443413,-250.0,0.00029622,2]
[391883253,1760951443422,-151.0,0.00029622,2]
[391883254,1760951443435,-788.46867021,0.00029622,2]
[391883255,1760951443445,-250.0,0.00029622,2]
[391883256,1760951443454,-151.0,0.00029622,2]
[391883258,1760951443465,-250.0,0.00029622,2]
[391883259,1760951443477,-151.0,0.00029622,2]
[391883260,1760951443486,-151.0,0.00029622,2]
[391883261,1760951443496,-290.08453086,0.00029622,2]
[391883262,1760951443507,-500.0,0.00029622,2]
[391883263,1760951443517,-500.0,0.00029622,2]
[391883265,1760951443527,-500.0,0.00029622,2]
[391883266,1760951443537,-250.0,0.00029622,2]
[391883267,1760951443547,-500.0,0.00029622,2]
[391883268,1760951443557,-250.0,0.00029622,2]
[391883269,1760951443569,-500.0,0.00029622,2]
[391883270,1760951443726,-250.0,0.00029622,2]
[391883271,1760951443735,-500.0,0.00029622,2]
[391883272,1760951443745,-250.0,0.00029622,2]
[391883273,1760951443755,-500.0,0.00029622,2]
[391883274,1760951443764,-250.0,0.00029622,2]
[391883275,1760951443774,-500.0,0.00029622,2]
[391883276,1760951443783,-250.0,0.00029622,2]
[391883277,1760951443792,-500.0,0.00029622,2]
[391883278,1760951443802,-303.16621955,0.00029622,2]
[391883279,1760951443811,-500.0,0.00029622,2]
[391883280,1760951443821,-500.0,0.00029622,2]
[391883281,1760951443830,-500.0,0.00029622,2]
[391883282,1760951443839,-500.0,0.00029622,2]
[391883283,1760951443848,-178.09666574,0.0002965,2]
[391883284,1760951443857,-5752.10650716,0.00029688,2]
[391883285,1760951443866,-161.30626584,0.00029688,2]
[391883286,1760951443876,-67787.8493581,0.00029698,2]
[391883287,1760951443885,-3000.0,0.000297,2]
[391883288,1760951443894,-3000.0,0.0002971,2]
[391883289,1760951443903,-394.57332877,0.0002971,2]
[391883290,1760951443912,-3000.0,0.0002972,2]
[391883291,1760951443922,-3000.0,0.0002973,2]
[391883292,1760951443931,-5752.10650716,0.0002973,2]
[391883293,1760951443941,-161.30626584,0.0002973,2]
[391883294,1760951443951,-3000.0,0.0002974,2]
[391883295,1760951443960,-3000.0,0.0002975,2]
[391883296,1760951443969,-3000.0,0.0002976,2]
[391883297,1760951443979,-3000.0,0.0002977,2]
[391883298,1760951443989,-3000.0,0.0002978,2]
[391883299,1760951443998,-5682.36415693,0.00029785,2]
[391883300,1760951444007,-3000.0,0.0002979,2]
[391883301,1760951444016,-3000.0,0.000298,2]
[391883302,1760951444025,-3000.0,0.0002981,2]
[391883303,1760951444034,-3000.0,0.0002982,2]
[391883304,1760951444043,-3000.0,0.0002983,2]
[391883305,1760951444053,-3000.0,0.0002984,2]
[391883306,1760951444062,-3000.0,0.0002985,2]
[391883307,1760951444072,-5752.10650716,0.0002985,2]
[391883308,1760951444081,-161.30626584,0.0002985,2]
[391883309,1760951444091,-4000.0,0.00029858,5]
[391883310,1760951444101,-5792.387788,0.0002986,2]
[391883311,1760951444110,-4000.0,0.00029889,5]
[391883312,1760951444119,-151.0,0.000299,14]
[391883313,1760951444128,-760.0,0.00029969,2]
[391883314,1760951444138,-209.497521,0.0003,15]
[391883315,1760951444147,-174.380786,0.0003,15]
[391883316,1760951444156,-1000.0,0.0003,14]
[391883317,1760951444165,-1001.2839673,0.0003,14]
[391883318,1760951444175,-1119.5528285,0.00030078,2]
[391883319,1760951444184,-533.88981491,0.0003017,2]
[391883320,1760951444193,-194.72792766,0.0003017,2]
[391883321,1760951444203,-375.0,0.000302,2]
[391883322,1760951444212,-1000.0,0.00030388,4]
[391883324,1760951444221,-543.0,0.0003039,2]
[391883325,1760951444230,-511.25074962,0.00030406,5]
[391883327,1760951444240,-4500.0,0.00030437,5]
[391883328,1760951444249,-423.68548779,0.00030471,2]
[391883329,1760951444258,-209.497521,0.00030499,20]
[391883330,1760951444267,-174.380786,0.00030499,20]
[391883331,1760951444276,-860.0,0.00030517,2]
[391883332,1760951444286,-746.0,0.00030622,2]
[391883333,1760951444295,-354.47748659,0.00030623,2]
[391883334,1760951444304,-543.0,0.00030701,2]
[391883335,1760951444313,-3450.31143751,0.00030706,2]
[391883336,1760951444323,-553.64373807,0.00030718,2]
[391883337,1760951444332,-201.93286099,0.00030718,2]
[391883338,1760951444342,-745.0,0.00030795,2]
[391883339,1760951444352,-397.5,0.000308,2]
[391883340,1760951444361,-543.0,0.00030826,2]
[391883341,1760951444370,-543.0,0.0003085,7]
[391883342,1760951444379,-5000.0,0.00030985,5]
[391883343,1760951444388,-183.30272066,0.00031,120]
[391883344,1760951444397,-627.30921148,0.00031,120]
[391883345,1760951444407,-204.00726077,0.00031,120]
[391883346,1760951444416,-366.30484536,0.00031,120]
[391883347,1760951444425,-336.53503533,0.00031,120]
[391883348,1760951444435,-151.0,0.00031,13]
[391883349,1760951444445,-1001.92,0.00031,2]
[391883350,1760951444454,-543.0,0.00031027,2]
[391883351,1760951444465,-150.0,0.00031045,5]
[391883352,1760951444474,-543.0,0.0003105,2]
[391883353,1760951444483,-745.0,0.00031061,2]
[391883354,1760951444492,-822.63163458,0.00031065,2]
[391883355,1760951444502,-152.68,0.00031094,15]
[391883356,1760951444510,-1001.92,0.00031174,2]
[391883357,1760951444518,-152.68,0.00031194,15]
[391883358,1760951444526,-745.0,0.000312,2]
[391883359,1760951444536,-5752.10650716,0.00031256,2]
[391883360,1760951444546,-161.30626584,0.00031256,2]
[391883361,1760951444556,-574.12855637,0.00031266,2]
[391883362,1760951444566,-209.40437684,0.00031266,2]
[391883363,1760951444575,-152.68,0.00031294,15]
[391883364,1760951444584,-4187.18,0.000313,2]
[391883365,1760951444593,-152.68,0.00031394,15]
[391883366,1760951444603,-823.0,0.00031398,2]
[391883367,1760951444612,-420.0,0.000314,2]
[391883368,1760951444622,-152.68,0.00031494,15]
[391883369,1760951444631,-543.0,0.00031494,2]
[391883370,1760951444641,-543.0,0.00031515,2]
[391883371,1760951444650,-5500.0,0.00031533,5]
[391883372,1760951444660,-543.0,0.00031571,2]
[391883373,1760951444670,-543.0,0.0003159,2]
[391883374,1760951444680,-250.0,0.00031593,5]
[391883375,1760951444689,-152.68,0.00031594,15]
[391883376,1760951444698,-26347.55,0.000316,7]
[391883377,1760951444707,-745.0,0.00031661,2]
[391883378,1760951444717,-152.68,0.00031694,15]
[391883379,1760951444727,-4204.0,0.00031744,2]
[391883380,1760951444736,-152.68,0.00031794,15]
[391883381,1760951444746,-595.37131296,0.00031814,2]
[391883382,1760951444755,-217.15233878,0.00031814,2]
[391883383,1760951444764,-2572.0,0.00031827,3]
[391883384,1760951444773,-543.0,0.00031834,7]
[391883385,1760951444783,-152.68,0.00031894,15]
[391883386,1760951444792,-543.0,0.00031898,2]
[391883387,1760951444801,-627.30921148,0.000319,120]
[391883388,1760951444811,-366.30484536,0.000319,120]
[391883389,1760951444820,-336.53503533,0.000319,120]
[391883390,1760951444829,-152.68,0.00031994,15]
[391883391,1760951444838,-442.5,0.00032,2]
[391883392,1760951444847,-8713.1482892,0.00032,5]
[391883393,1760951444857,-250.0,0.00032024,2]
[391883394,1760951444866,-746.0,0.0003208,7]
[391883395,1760951444876,-6000.0,0.00032081,5]
[391883396,1760951444885,-543.0,0.00032083,2]
[391883397,1760951444895,-543.0,0.00032084,2]
[391883398,1760951444904,-209.497521,0.00032089,15]
[391883399,1760951444913,-174.380786,0.00032089,15]
[391883400,1760951444922,-152.68,0.00032094,15]
[391883401,1760951444932,-350.0,0.00032141,5]
[391883402,1760951444941,-543.0,0.00032181,2]
[391883403,1760951444951,-152.68,0.00032194,15]
[391883404,1760951444960,-152.68,0.00032294,15]
[391883405,1760951444970,-617.40005154,0.00032362,2]
[391883406,1760951444981,-225.18697532,0.00032362,2]
[391883407,1760951444991,-152.68,0.00032394,15]
[391883408,1760951445000,-152.68,0.00032494,15]
[391883409,1760951445009,-543.0,0.00032509,2]
[391883410,1760951445018,-152.68,0.00032594,15]
[391883411,1760951445028,-151.0,0.000326,14]
[391883412,1760951445038,-210.85657639,0.000326,2]
[391883413,1760951445048,-4614.33579214,0.00032629,5]
[391883414,1760951445058,-450.0,0.00032689,5]
[391883415,1760951445067,-152.68,0.00032694,15]
[391883416,1760951445076,-4187.18,0.000327,2]
[391883417,1760951445086,-152.68,0.00032794,15]
[391883418,1760951445095,-543.0,0.00032856,7]
[391883419,1760951445105,-543.0,0.00032864,2]
[391883420,1760951445115,-2999.0,0.00032876,120]
[391883421,1760951445124,-500.0,0.00032877,5]
[391883422,1760951445133,-152.68,0.00032894,60]
[391883423,1760951445142,-627.30921148,0.000329,120]
[391883424,1760951445151,-366.30484536,0.000329,120]
[391883425,1760951445161,-336.53503533,0.000329,120]
[391883426,1760951445171,-640.24385345,0.0003291,2]
[391883427,1760951445180,-233.51889341,0.0003291,2]
[391883428,1760951445190,-152.68,0.00032994,60]
[391883429,1760951445199,-160.0,0.00033,30]
[391883430,1760951445208,-160.0,0.00033,30]
[391883431,1760951445218,-155.0,0.00033,14]
[391883432,1760951445227,-152.68,0.00033094,60]
[391883433,1760951445236,-152.68,0.00033194,60]
[391883434,1760951445245,-26347.55,0.000332,14]
[391883435,1760951445255,-177.24960776,0.000332,117]
[391883436,1760951445264,-177.24960773,0.000332,117]
[391883437,1760951445274,-177.24960773,0.000332,117]
[391883438,1760951445284,-550.0,0.00033237,5]
[391883439,1760951445294,-152.68,0.00033294,60]
[391883440,1760951445303,-745.0,0.00033376,7]
[391883441,1760951445312,-152.68,0.00033394,60]
[391883442,1760951445322,-663.93287602,0.00033458,2]
[391883443,1760951445332,-242.15909246,0.00033458,2]
[391883444,1760951445341,-152.68,0.00033494,60]
[391883445,1760951445351,-151.0,0.000335,11]
[391883446,1760951445361,-155.0,0.00033534,61]
[391883447,1760951445370,-2999.0,0.00033561,120]
[391883448,1760951445379,-1000.0,0.00033592,4]
[391883449,1760951445388,-152.68,0.00033594,60]
[391883450,1760951445397,-152.68,0.00033694,60]
[391883451,1760951445407,-650.0,0.00033785,5]
[391883452,1760951445417,-152.68,0.00033794,60]
[391883453,1760951445426,-160.0,0.000338,60]
[391883454,1760951445435,-160.0,0.000338,60]
[391883455,1760951445446,-6395.875445,0.00033845,30]
[391883456,1760951445455,-150.0,0.00033845,30]
[391883457,1760951445466,-252.277079,0.00033845,10]
[391883458,1760951445475,-152.68,0.00033894,60]
[391883459,1760951445485,-627.30921148,0.000339,120]
[391883460,1760951445494,-366.30484536,0.000339,120]